[Event "Championnat d'Europe de Blitz"]
[Date "2024.12.09"]
[White "Narva, Mai"]
[Black "Dragnev, Valentin"]
[WhiteElo "2413"]
[BlackElo "2563"]
[Round "8.28"]
[Result "0-1"]
[TimeControl "180+2"]

1. e4 {[%clk 00:03:03]} c6 {[%clk 00:03:04]} 2. Nf3 {[%emt 00:00:05] [%clk
00:03:00]} d5 {[%clk 00:03:05]} 3. d3 {[%emt 00:00:02] [%clk 00:03:00]} Qc7
{[%emt 00:00:02] [%clk 00:03:04]} 4. g3 {[%emt 00:00:07] [%clk 00:02:55]} e5
{[%emt 00:00:15] [%clk 00:02:52]} 5. Bg2 {[%emt 00:00:03] [%clk 00:02:54]} Nf6
{[%emt 00:00:04] [%clk 00:02:50]} 6. O-O {[%emt 00:00:04] [%clk 00:02:52]} dxe4
{[%emt 00:00:11] [%clk 00:02:41]} 7. dxe4 {[%emt 00:00:02] [%clk 00:02:52]} Nbd7
{[%emt 00:00:08] [%clk 00:02:35]} 8. Qe2 {[%emt 00:00:32] [%clk 00:02:21]} Bc5
{[%emt 00:00:02] [%clk 00:02:35]} 9. a4 {[%emt 00:00:11] [%clk 00:02:12]} a5
{[%emt 00:00:02] [%clk 00:02:36]} 10. Nbd2 {[%emt 00:00:25] [%clk 00:01:48]} b6
{[%emt 00:00:03] [%clk 00:02:35]} 11. Nc4 {[%emt 00:00:19] [%clk 00:01:31]} O-O
{[%emt 00:00:07] [%clk 00:02:31]} 12. b3 {[%emt 00:00:11] [%clk 00:01:22]} Ba6
{[%emt 00:00:10] [%clk 00:02:23]} 13. Bb2 {[%emt 00:00:05] [%clk 00:01:19]} Rfe8
{[%emt 00:00:03] [%clk 00:02:22]} 14. Nfd2 {[%emt 00:00:20] [%clk 00:01:00]} b5
{[%emt 00:00:13] [%clk 00:02:12]} 15. axb5 {[%emt 00:00:02] [%clk 00:01:00]}
cxb5 {[%emt 00:00:01] [%clk 00:02:13]} 16. Ne3 {[%emt 00:00:40] [%clk 00:00:22]}
Bxe3 {[%emt 00:00:06] [%clk 00:02:09]} 17. Qxe3 {[%emt 00:00:02] [%clk
00:00:22]} Qxc2 {[%emt 00:00:18] [%clk 00:01:52]} 18. Rfb1 {[%emt 00:00:02]
[%clk 00:00:23]} Qc7 {[%emt 00:00:06] [%clk 00:01:48]} 19. Rc1 {[%emt 00:00:04]
[%clk 00:00:21]} Qd8 {[%emt 00:00:04] [%clk 00:01:46]} 20. Rd1 {[%emt 00:00:11]
[%clk 00:00:12]} Bb7 {[%emt 00:00:03] [%clk 00:01:45]} 21. h3 {[%emt 00:00:06]
[%clk 00:00:08]} h6 {[%emt 00:00:03] [%clk 00:01:44]} 22. Nf3 {[%emt 00:00:03]
[%clk 00:00:07]} Bxe4 {[%emt 00:00:16] [%clk 00:01:30]} 23. Nxe5 {[%emt
00:00:02] [%clk 00:00:07]} Bxg2 {[%emt 00:00:02] [%clk 00:01:30]} 24. Kxg2
{[%emt 00:00:02] [%clk 00:00:07]} Qc7 {[%emt 00:00:30] [%clk 00:01:02]} 25. Rac1
{[%emt 00:00:01] [%clk 00:00:07]} Qb7+ {[%emt 00:00:02] [%clk 00:01:03]} 26. Qf3
{[%emt 00:00:02] [%clk 00:00:07]} Qxf3+ {[%emt 00:00:07] [%clk 00:01:00]} 27.
Nxf3 {[%clk 00:00:08]} a4 {[%emt 00:00:05] [%clk 00:00:56]} 28. bxa4 {[%emt
00:00:01] [%clk 00:00:09]} bxa4 {[%clk 00:00:58]} 29. Ba3 {[%emt 00:00:05] [%clk
00:00:05]} Re2 {[%emt 00:00:18] [%clk 00:00:42]} 30. Nd4 {[%emt 00:00:03] [%clk
00:00:04]} Ra2 {[%emt 00:00:04] [%clk 00:00:40]} 31. Rd3 {[%emt 00:00:04] [%clk
00:00:00]} 0-1

[Site "Europe Echecs"]

[Event "Championnat d'Europe de Blitz"]
[Date "2024.12.09"]
[White "Boyer, Mahel"]
[Black "Narva, Triin"]
[WhiteElo "2526"]
[BlackElo "2064"]
[Round "8.29"]
[Result "1-0"]
[TimeControl "180+2"]

1. Nf3 {[%emt 00:00:02] [%clk 00:03:02]} g6 {[%emt 00:00:02] [%clk 00:03:04]} 2.
e4 {[%emt 00:00:03] [%clk 00:03:01]} Bg7 {[%emt 00:00:01] [%clk 00:03:04]} 3. d4
{[%emt 00:00:01] [%clk 00:03:01]} d6 {[%clk 00:03:06]} 4. Nc3 {[%emt 00:00:01]
[%clk 00:03:01]} Nf6 {[%emt 00:00:13] [%clk 00:02:55]} 5. Bg5 {[%emt 00:00:09]
[%clk 00:02:54]} h6 {[%emt 00:00:03] [%clk 00:02:54]} 6. Be3 {[%emt 00:00:04]
[%clk 00:02:53]} O-O {[%emt 00:00:10] [%clk 00:02:46]} 7. h3 {[%emt 00:00:02]
[%clk 00:02:52]} Nbd7 {[%emt 00:00:08] [%clk 00:02:40]} 8. Qd2 {[%emt 00:00:02]
[%clk 00:02:52]} Kh7 {[%emt 00:00:02] [%clk 00:02:41]} 9. e5 {[%emt 00:00:02]
[%clk 00:02:51]} Ng8 {[%emt 00:00:21] [%clk 00:02:23]} 10. O-O-O {[%emt
00:00:02] [%clk 00:02:51]} c6 {[%emt 00:00:21] [%clk 00:02:04]} 11. Bd3 {[%emt
00:00:24] [%clk 00:02:29]} b5 {[%emt 00:00:22] [%clk 00:01:44]} 12. h4 {[%emt
00:00:05] [%clk 00:02:25]} b4 {[%emt 00:00:22] [%clk 00:01:25]} 13. Ne2 {[%emt
00:00:03] [%clk 00:02:24]} Qa5 {[%emt 00:00:04] [%clk 00:01:23]} 14. Kb1 {[%emt
00:00:05] [%clk 00:02:21]} dxe5 {[%emt 00:00:13] [%clk 00:01:12]} 15. h5 {[%clk
00:02:22]} Ba6 {[%emt 00:00:27] [%clk 00:00:48]} 16. hxg6+ {[%emt 00:00:22]
[%clk 00:02:03]} fxg6 {[%clk 00:00:49]} 17. Ng5+ {[%emt 00:00:01] [%clk
00:02:04]} Kh8 {[%emt 00:00:04] [%clk 00:00:47]} 18. Bxg6 {[%emt 00:00:02] [%clk
00:02:04]} Bc4 {[%emt 00:00:19] [%clk 00:00:29]} 19. Nc1 {[%emt 00:00:08] [%clk
00:01:58]} exd4 {[%emt 00:00:15] [%clk 00:00:16]} 20. Bxd4 {[%clk 00:01:59]} e5
{[%emt 00:00:02] [%clk 00:00:17]} 21. Be3 {[%emt 00:00:07] [%clk 00:01:54]} Ndf6
{[%emt 00:00:08] [%clk 00:00:11]} 22. Nb3 {[%emt 00:00:21] [%clk 00:01:34]} Qc7
{[%emt 00:00:08] [%clk 00:00:06]} 23. Qxb4 {[%emt 00:00:05] [%clk 00:01:30]} Bd5
{[%emt 00:00:03] [%clk 00:00:04]} 24. Qa5 {[%emt 00:01:07] [%clk 00:00:26]} Qxa5
{[%emt 00:00:02] [%clk 00:00:04]} 25. Nxa5 {[%clk 00:00:27]} Ne7 {[%clk
00:00:05]} 26. Bd3 {[%emt 00:00:06] [%clk 00:00:23]} Bxg2 {[%emt 00:00:02] [%clk
00:00:04]} 27. Rh2 {[%clk 00:00:24]} Bd5 {[%emt 00:00:02] [%clk 00:00:05]} 28.
Bc5 {[%emt 00:00:08] [%clk 00:00:18]} Rae8 {[%emt 00:00:02] [%clk 00:00:05]} 29.
c4 {[%emt 00:00:02] [%clk 00:00:18]} Bg8 {[%clk 00:00:07]} 30. Rh4 {[%emt
00:00:09] [%clk 00:00:11]} Nh7 {[%emt 00:00:02] [%clk 00:00:07]} 31. Nxh7 {[%emt
00:00:02] [%clk 00:00:10]} Bxh7 {[%clk 00:00:08]} 32. Bxh7 {[%emt 00:00:02]
[%clk 00:00:10]} Kxh7 {[%clk 00:00:10]} 33. Rd7 {[%emt 00:00:05] [%clk
00:00:07]} Rf7 {[%emt 00:00:08] [%clk 00:00:05]} 34. Nxc6 {[%clk 00:00:08]} Nf5
{[%emt 00:00:02] [%clk 00:00:05]} 35. Rxf7 {[%emt 00:00:02] [%clk 00:00:07]}
Nxh4 {[%clk 00:00:06]} 36. Rxa7 {[%emt 00:00:04] [%clk 00:00:06]} Kg6 {[%emt
00:00:02] [%clk 00:00:06]} 37. Ne7+ {[%emt 00:00:02] [%clk 00:00:07]} Kh5 {[%emt
00:00:03] [%clk 00:00:04]} 38. Nd5 {[%emt 00:00:01] [%clk 00:00:08]} Rg8 {[%emt
00:00:03] [%clk 00:00:03]} 39. a4 {[%emt 00:00:02] [%clk 00:00:07]} Nf5 {[%emt
00:00:02] [%clk 00:00:03]} 40. a5 {[%emt 00:00:03] [%clk 00:00:07]} Kg5 {[%emt
00:00:01] [%clk 00:00:03]} 41. a6 {[%emt 00:00:02] [%clk 00:00:08]} h5 {[%emt
00:00:01] [%clk 00:00:04]} 42. Ne7 {[%emt 00:00:04] [%clk 00:00:06]} Nxe7 {[%emt
00:00:02] [%clk 00:00:04]} 43. Bxe7+ {[%emt 00:00:02] [%clk 00:00:07]} Kf5
{[%emt 00:00:02] [%clk 00:00:05]} 44. Rb7 {[%emt 00:00:02] [%clk 00:00:07]} Ra8
{[%emt 00:00:02] [%clk 00:00:05]} 45. a7 {[%emt 00:00:01] [%clk 00:00:08]} Bh6
{[%emt 00:00:01] [%clk 00:00:05]} 46. b4 {[%emt 00:00:02] [%clk 00:00:08]} h4
{[%emt 00:00:02] [%clk 00:00:05]} 47. Bxh4 {[%emt 00:00:02] [%clk 00:00:08]} Bd2
{[%clk 00:00:07]} 48. b5 {[%emt 00:00:01] [%clk 00:00:09]} Bb4 {[%emt 00:00:03]
[%clk 00:00:06]} 49. b6 {[%emt 00:00:02] [%clk 00:00:09]} 1-0

[Site "Europe Echecs"]

[Event "Championnat d'Europe de Blitz"]
[Date "2024.12.09"]
[White "Maltsevskaya, Aleksandra"]
[Black "Cvitan, Ognjen"]
[WhiteElo "2368"]
[BlackElo "2413"]
[Round "8.30"]
[Result "0-1"]
[TimeControl "180+2"]

1. e4 {[%clk 00:03:03]} c5 {[%clk 00:03:04]} 2. Nf3 {[%emt 00:00:01] [%clk
00:03:03]} d6 {[%clk 00:03:05]} 3. d4 {[%emt 00:00:06] [%clk 00:03:00]} cxd4
{[%clk 00:03:06]} 4. Nxd4 {[%clk 00:03:01]} Nf6 {[%emt 00:00:03] [%clk
00:03:05]} 5. Nc3 {[%emt 00:00:01] [%clk 00:03:03]} a6 {[%clk 00:03:06]} 6. g3
{[%emt 00:00:01] [%clk 00:03:03]} e5 {[%emt 00:00:01] [%clk 00:03:07]} 7. Nb3
{[%emt 00:00:01] [%clk 00:03:04]} Be7 {[%clk 00:03:08]} 8. Bg2 {[%emt 00:00:01]
[%clk 00:03:04]} O-O {[%emt 00:00:02] [%clk 00:03:08]} 9. O-O {[%emt 00:00:02]
[%clk 00:03:05]} Nbd7 {[%clk 00:03:10]} 10. a4 {[%emt 00:00:02] [%clk 00:03:05]}
b6 {[%clk 00:03:11]} 11. Re1 {[%emt 00:00:02] [%clk 00:03:05]} Bb7 {[%emt
00:00:01] [%clk 00:03:12]} 12. Nd2 {[%clk 00:03:06]} Rc8 {[%emt 00:00:06] [%clk
00:03:09]} 13. Nf1 {[%emt 00:00:42] [%clk 00:02:26]} Nc5 {[%emt 00:00:02] [%clk
00:03:08]} 14. Bg5 {[%emt 00:00:19] [%clk 00:02:09]} Ne6 {[%emt 00:00:02] [%clk
00:03:09]} 15. Bxf6 {[%emt 00:00:04] [%clk 00:02:06]} Bxf6 {[%emt 00:00:01]
[%clk 00:03:10]} 16. Ne3 {[%emt 00:00:01] [%clk 00:02:07]} Nd4 {[%emt 00:00:01]
[%clk 00:03:11]} 17. Ncd5 {[%emt 00:00:33] [%clk 00:01:36]} Bg5 {[%emt 00:00:19]
[%clk 00:02:54]} 18. f4 {[%emt 00:00:16] [%clk 00:01:22]} Bf6 {[%emt 00:00:30]
[%clk 00:02:25]} 19. Nxf6+ {[%emt 00:00:18] [%clk 00:01:06]} Qxf6 {[%emt
00:00:02] [%clk 00:02:26]} 20. f5 {[%clk 00:01:08]} Qd8 {[%emt 00:00:18] [%clk
00:02:10]} 21. c3 {[%emt 00:00:02] [%clk 00:01:08]} Nc6 {[%emt 00:00:01] [%clk
00:02:11]} 22. Qg4 {[%emt 00:00:10] [%clk 00:01:00]} Na5 {[%emt 00:00:13]} 23.
Rad1 {[%clk 00:00:59]} Nc4 {[%emt 00:00:04] [%clk 00:02:02]} 24. Qe2 {[%emt
00:00:13] [%clk 00:00:48]} Nxe3 {[%emt 00:00:04] [%clk 00:02:00]} 25. Qxe3
{[%clk 00:00:49]} a5 {[%emt 00:00:05] [%clk 00:01:57]} 26. Rd2 {[%emt 00:00:04]
[%clk 00:00:46]} Qc7 {[%emt 00:00:13] [%clk 00:01:45]} 27. f6 {[%emt 00:00:04]
[%clk 00:00:45]} Qc5 {[%emt 00:00:16] [%clk 00:01:31]} 28. fxg7 {[%emt 00:00:07]
[%clk 00:00:40]} Kxg7 {[%emt 00:00:01] [%clk 00:01:31]} 29. Kf2 {[%emt 00:00:18]
[%clk 00:00:24]} Kf6 {[%emt 00:00:07] [%clk 00:01:25]} 30. Red1 {[%emt 00:00:02]
[%clk 00:00:25]} Qxe3+ {[%emt 00:00:32] [%clk 00:00:55]} 31. Kxe3 {[%emt
00:00:02] [%clk 00:00:26]} Bc6 {[%emt 00:00:11] [%clk 00:00:46]} 32. Rxd6+
{[%emt 00:00:02] [%clk 00:00:26]} Ke7 {[%clk 00:00:48]} 33. Bh3 {[%emt 00:00:11]
[%clk 00:00:18]} Bxa4 {[%emt 00:00:14] [%clk 00:00:35]} 34. R1d2 {[%emt
00:00:08] [%clk 00:00:12]} Rc7 {[%emt 00:00:03] [%clk 00:00:34]} 35. Rxb6 {[%emt
00:00:02] [%clk 00:00:13]} Bc6 {[%emt 00:00:05] [%clk 00:00:30]} 36. Ra6 {[%emt
00:00:02] [%clk 00:00:14]} a4 {[%clk 00:00:31]} 37. Ra5 {[%emt 00:00:01] [%clk
00:00:14]} f6 {[%emt 00:00:04] [%clk 00:00:30]} 38. Rc5 {[%emt 00:00:01] [%clk
00:00:15]} Rb8 {[%emt 00:00:02] [%clk 00:00:30]} 39. Bf1 {[%emt 00:00:05] [%clk
00:00:12]} Rbb7 {[%emt 00:00:03] [%clk 00:00:29]} 40. Ba6 {[%emt 00:00:02] [%clk
00:00:12]} Ra7 {[%clk 00:00:30]} 41. Bb5 {[%emt 00:00:03] [%clk 00:00:11]} Bxb5
{[%emt 00:00:03] [%clk 00:00:29]} 42. Rxb5 {[%emt 00:00:01] [%clk 00:00:12]} a3
{[%clk 00:00:30]} 43. bxa3 {[%emt 00:00:08] [%clk 00:00:06]} Rxa3 {[%clk
00:00:32]} 44. Rbd5 {[%emt 00:00:05] [%clk 00:00:04]} Raxc3+ {[%emt 00:00:04]
[%clk 00:00:30]} 45. R5d3 {[%clk 00:00:05]} Rxd3+ {[%emt 00:00:01] [%clk
00:00:30]} 46. Rxd3 {[%emt 00:00:02] [%clk 00:00:05]} Rc2 {[%clk 00:00:32]} 47.
h3 {[%emt 00:00:03] [%clk 00:00:04]} h5 {[%emt 00:00:02]} 48. Ra3 {[%clk
00:00:05]} Kf7 {[%emt 00:00:02] [%clk 00:00:33]} 49. Kf3 {[%emt 00:00:01] [%clk
00:00:05]} Kg6 {[%emt 00:00:01] [%clk 00:00:34]} 50. g4 {[%emt 00:00:01] [%clk
00:00:06]} h4 {[%clk 00:00:35]} 51. Rd3 {[%emt 00:00:02] [%clk 00:00:06]} Rh2
{[%emt 00:00:01] [%clk 00:00:35]} 52. Rd8 {[%emt 00:00:03] [%clk 00:00:06]}
Rxh3+ {[%clk 00:00:36]} 53. Kf2 {[%emt 00:00:02] [%clk 00:00:06]} Kg5 {[%emt
00:00:02] [%clk 00:00:35]} 54. Rg8+ {[%emt 00:00:02] [%clk 00:00:07]} Kf4 {[%clk
00:00:37]} 55. Rg6 {[%clk 00:00:08]} Rf3+ {[%emt 00:00:01] [%clk 00:00:38]} 56.
Kg2 {[%emt 00:00:03] [%clk 00:00:06]} Kxe4 {[%emt 00:00:02] [%clk 00:00:39]} 57.
g5 {[%emt 00:00:02] [%clk 00:00:07]} Rg3+ {[%emt 00:00:03] [%clk 00:00:37]} 58.
Kh2 {[%clk 00:00:08]} fxg5 {[%clk 00:00:38]} 59. Rf6 {[%emt 00:00:03] [%clk
00:00:07]} Ke3 {[%emt 00:00:01] [%clk 00:00:38]} 60. Rf1 {[%emt 00:00:02] [%clk
00:00:07]} e4 {[%emt 00:00:01] [%clk 00:00:39]} 61. Re1+ {[%clk 00:00:08]} Kf4
{[%emt 00:00:01] [%clk 00:00:40]} 62. Rf1+ {[%emt 00:00:05] [%clk 00:00:05]} Ke5
{[%clk 00:00:41]} 63. Rf8 {[%emt 00:00:02] [%clk 00:00:05]} e3 {[%emt 00:00:01]
[%clk 00:00:41]} 64. Rf7 {[%emt 00:00:04] [%clk 00:00:04]} Ke4 {[%emt 00:00:01]
[%clk 00:00:42]} 65. Re7+ {[%emt 00:00:03] [%clk 00:00:03]} Kd3 {[%clk
00:00:43]} 66. Rd7+ {[%emt 00:00:01] [%clk 00:00:04]} Ke2 {[%clk 00:00:44]} 67.
Rd6 {[%emt 00:00:01] [%clk 00:00:05]} Ke1 {[%emt 00:00:03] [%clk 00:00:43]} 68.
Rd5 {[%emt 00:00:02] [%clk 00:00:05]} e2 {[%emt 00:00:02] [%clk 00:00:43]} 69.
Re5 {[%emt 00:00:04] [%clk 00:00:04]} Kf2 {[%emt 00:00:02] [%clk 00:00:42]} 70.
Rf5+ {[%emt 00:00:04] [%clk 00:00:03]} Rf3 {[%emt 00:00:01] [%clk 00:00:43]} 0-1

[Site "Europe Echecs"]

[Event "Championnat d'Europe de Blitz"]
[Date "2024.12.09"]
[White "Magold, Filip"]
[Black "Stankovic, Milos"]
[WhiteElo "2428"]
[BlackElo "2462"]
[Round "8.31"]
[Result "1-0"]
[TimeControl "180+2"]

1. d4 {[%emt 00:00:01] [%clk 00:03:03]} d5 {[%emt 00:00:02] [%clk 00:03:02]} 2.
c4 {[%emt 00:00:02] [%clk 00:03:04]} e6 {[%clk 00:03:03]} 3. Nc3 {[%emt
00:00:02] [%clk 00:03:04]} h6 {[%emt 00:00:02] [%clk 00:03:03]} 4. Nf3 {[%emt
00:00:06] [%clk 00:03:01]} Nf6 {[%emt 00:00:02] [%clk 00:03:03]} 5. Bf4 {[%emt
00:00:07] [%clk 00:02:56]} Bd6 {[%emt 00:00:02] [%clk 00:03:03]} 6. Bxd6 {[%emt
00:00:15] [%clk 00:02:43]} Qxd6 {[%emt 00:00:02] [%clk 00:03:03]} 7. e3 {[%emt
00:00:01] [%clk 00:02:44]} O-O {[%emt 00:00:04] [%clk 00:03:01]} 8. Bd3 {[%emt
00:00:02] [%clk 00:02:44]} dxc4 {[%emt 00:00:03] [%clk 00:03:00]} 9. Bxc4 {[%emt
00:00:02] [%clk 00:02:44]} Rd8 {[%emt 00:00:20] [%clk 00:02:41]} 10. O-O {[%emt
00:00:04] [%clk 00:02:43]} c5 {[%emt 00:01:01] [%clk 00:01:43]} 11. dxc5 {[%emt
00:00:18] [%clk 00:02:27]} Qe7 {[%clk 00:01:44]} 12. Qe2 {[%emt 00:00:07] [%clk
00:02:21]} Qxc5 {[%emt 00:00:03] [%clk 00:01:43]} 13. Rfd1 {[%emt 00:00:02]
[%clk 00:02:22]} Bd7 {[%emt 00:00:03] [%clk 00:01:42]} 14. a3 {[%emt 00:00:04]
[%clk 00:02:20]} Nc6 {[%emt 00:00:08] [%clk 00:01:36]} 15. b4 {[%emt 00:00:07]
[%clk 00:02:15]} Qh5 {[%emt 00:00:03] [%clk 00:01:34]} 16. Nb5 {[%emt 00:01:20]
[%clk 00:00:58]} Ne5 {[%emt 00:00:08] [%clk 00:01:27]} 17. Nxe5 {[%emt 00:00:12]
[%clk 00:00:48]} Qxe5 {[%emt 00:00:02] [%clk 00:01:28]} 18. Nd4 {[%emt 00:00:16]
[%clk 00:00:34]} Rac8 {[%emt 00:00:06] [%clk 00:01:24]} 19. Rac1 {[%emt
00:00:02] [%clk 00:00:33]} Ba4 {[%emt 00:00:02] [%clk 00:01:24]} 20. Re1 {[%emt
00:00:01] [%clk 00:00:34]} Ne4 {[%emt 00:00:23] [%clk 00:01:04]} 21. Bd3 {[%emt
00:00:08] [%clk 00:00:28]} Nc3 {[%emt 00:00:15] [%clk 00:00:51]} 22. Qd2 {[%emt
00:00:10] [%clk 00:00:19]} Nd5 {[%emt 00:00:03] [%clk 00:00:50]} 23. b5 {[%emt
00:00:09] [%clk 00:00:12]} Nb6 {[%emt 00:00:06] [%clk 00:00:46]} 24. Qb4 {[%emt
00:00:04] [%clk 00:00:09]} Qd5 {[%emt 00:00:14] [%clk 00:00:35]} 25. Bf1 {[%clk
00:00:10]} Qa2 {[%emt 00:00:14] [%clk 00:00:23]} 26. h3 {[%emt 00:00:04] [%clk
00:00:08]} Bc2 {[%emt 00:00:09] [%clk 00:00:16]} 27. Qa5 {[%emt 00:00:05] [%clk
00:00:06]} Be4 {[%emt 00:00:03] [%clk 00:00:14]} 28. Qxa7 {[%emt 00:00:01] [%clk
00:00:07]} Nd5 {[%emt 00:00:04] [%clk 00:00:13]} 29. Qxb7 {[%emt 00:00:02] [%clk
00:00:06]} Rxc1 {[%emt 00:00:05] [%clk 00:00:10]} 30. Rxc1 {[%clk 00:00:08]}
Qxa3 {[%emt 00:00:02] [%clk 00:00:11]} 31. Rc8 {[%emt 00:00:02] [%clk 00:00:08]}
Rxc8 {[%emt 00:00:06] [%clk 00:00:07]} 32. Qxc8+ {[%emt 00:00:01] [%clk
00:00:09]} Kh7 {[%clk 00:00:08]} 33. Qc4 {[%emt 00:00:04] [%clk 00:00:06]} Nxe3
{[%emt 00:00:04] [%clk 00:00:06]} 34. fxe3 Qxe3+ {[%clk 00:00:07]} 35. Kh2
{[%emt 00:00:02] [%clk 00:00:07]} Qf4+ {[%emt 00:00:01] [%clk 00:00:08]} 36. Kh1
{[%clk 00:00:08]} Bd5 {[%emt 00:00:04] [%clk 00:00:07]} 37. Qd3+ {[%emt
00:00:01] [%clk 00:00:08]} f5 {[%emt 00:00:02] [%clk 00:00:07]} 38. Nf3 {[%emt
00:00:05] [%clk 00:00:05]} Be4 {[%emt 00:00:02] [%clk 00:00:07]} 39. Qd2 {[%emt
00:00:03] [%clk 00:00:05]} Qg3 {[%clk 00:00:08]} 40. Qe3 {[%emt 00:00:03] [%clk
00:00:04]} g5 {[%emt 00:00:06] [%clk 00:00:05]} 41. b6 {[%clk 00:00:05]} Kg6
{[%emt 00:00:01] [%clk 00:00:06]} 42. b7 {[%emt 00:00:02] [%clk 00:00:05]} Bxb7
{[%emt 00:00:01] [%clk 00:00:06]} 43. Qxe6+ {[%clk 00:00:06]} Kg7 {[%emt
00:00:02] [%clk 00:00:07]} 44. Qe7+ {[%clk 00:00:07]} Kg6 {[%clk 00:00:08]} 45.
Qxb7 {[%clk 00:00:08]} g4 {[%emt 00:00:01] [%clk 00:00:09]} 46. Qc6+ {[%emt
00:00:01] [%clk 00:00:09]} Kh5 {[%emt 00:00:02] [%clk 00:00:10]} 47. Qe8# {[%clk
00:00:10]} 1-0

[Site "Europe Echecs"]

[Event "Championnat d'Europe de Blitz"]
[Date "2024.12.09"]
[White "Ghimpu, Samuel-Timotei"]
[Black "Nikolovski, Nikola"]
[WhiteElo "2475"]
[BlackElo "2407"]
[Round "8.32"]
[Result "1-0"]
[TimeControl "180+2"]

1. e4 {[%emt 00:00:01] [%clk 00:03:03]} d5 {[%clk 00:03:04]} 2. exd5 {[%emt
00:00:05] [%clk 00:03:00]} Qxd5 {[%emt 00:00:02] [%clk 00:03:04]} 3. Nc3 {[%emt
00:00:01] [%clk 00:03:00]} Qa5 {[%emt 00:00:01] [%clk 00:03:05]} 4. d4 {[%emt
00:00:02] [%clk 00:03:01]} Nf6 {[%emt 00:00:01] [%clk 00:03:06]} 5. Nf3 {[%clk
00:03:02]} Bg4 {[%emt 00:00:01] [%clk 00:03:07]} 6. h3 {[%emt 00:00:30] [%clk
00:02:34]} Bh5 {[%emt 00:00:01] [%clk 00:03:08]} 7. Bd2 {[%emt 00:00:10] [%clk
00:02:26]} e6 {[%emt 00:00:51] [%clk 00:02:18]} 8. Be2 {[%emt 00:00:21] [%clk
00:02:07]} Nc6 {[%emt 00:00:25] [%clk 00:01:55]} 9. Nb5 {[%emt 00:00:09] [%clk
00:02:00]} Qb6 {[%emt 00:00:02] [%clk 00:01:55]} 10. c4 {[%emt 00:00:10] [%clk
00:01:52]} Bb4 {[%emt 00:00:40] [%clk 00:01:17]} 11. Bxb4 {[%emt 00:00:21] [%clk
00:01:33]} Nxb4 {[%emt 00:00:01] [%clk 00:01:18]} 12. a3 {[%emt 00:00:01] [%clk
00:01:34]} Bxf3 {[%emt 00:00:14] [%clk 00:01:06]} 13. gxf3 {[%emt 00:00:49]
[%clk 00:00:47]} Na6 {[%emt 00:00:01] [%clk 00:01:07]} 14. c5 {[%emt 00:00:03]
[%clk 00:00:46]} Qc6 {[%emt 00:00:01] [%clk 00:01:07]} 15. Nc3 {[%emt 00:00:03]
[%clk 00:00:45]} Qd7 {[%emt 00:00:52] [%clk 00:00:17]} 16. c6 {[%emt 00:00:01]
[%clk 00:00:46]} Qc8 {[%clk 00:00:19]} 17. cxb7 {[%emt 00:00:02] [%clk
00:00:46]} Qxb7 {[%emt 00:00:01] [%clk 00:00:20]} 18. Qa4+ {[%emt 00:00:02]
[%clk 00:00:45]} c6 {[%emt 00:00:02] [%clk 00:00:20]} 19. Qxa6 {[%emt 00:00:14]
[%clk 00:00:33]} Qd7 {[%emt 00:00:05] [%clk 00:00:17]} 20. Qc4 {[%emt 00:00:08]
[%clk 00:00:27]} O-O {[%emt 00:00:03] [%clk 00:00:16]} 21. Rc1 {[%emt 00:00:13]
[%clk 00:00:16]} Rfe8 {[%emt 00:00:05] [%clk 00:00:13]} 22. Ne4 {[%emt 00:00:03]
[%clk 00:00:15]} Nd5 {[%emt 00:00:03] [%clk 00:00:11]} 23. Qxc6 {[%emt 00:00:03]
[%clk 00:00:14]} Qe7 {[%clk 00:00:13]} 24. Qd6 {[%emt 00:00:03] [%clk 00:00:14]}
Qb7 {[%emt 00:00:08] [%clk 00:00:06]} 25. b4 {[%emt 00:00:03] [%clk 00:00:13]}
Rad8 {[%clk 00:00:07]} 26. Qg3 {[%emt 00:00:02] [%clk 00:00:12]} Kh8 {[%emt
00:00:03] [%clk 00:00:06]} 27. O-O {[%emt 00:00:02] [%clk 00:00:12]} f5 {[%emt
00:00:03] [%clk 00:00:06]} 28. Nd6 {[%clk 00:00:13]} Qe7 {[%emt 00:00:03] [%clk
00:00:04]} 29. Nxe8 {[%emt 00:00:02] [%clk 00:00:14]} Rxe8 {[%emt 00:00:02]
[%clk 00:00:05]} 30. Bc4 {[%emt 00:00:02] [%clk 00:00:13]} Nf6 {[%emt 00:00:04]
[%clk 00:00:04]} 31. Rfe1 {[%emt 00:00:02] [%clk 00:00:13]} Qd7 {[%emt 00:00:01]
[%clk 00:00:05]} 32. Qe5 {[%emt 00:00:05] [%clk 00:00:10]} Nh5 {[%emt 00:00:03]
[%clk 00:00:03]} 33. Bxe6 {[%emt 00:00:04] [%clk 00:00:08]} Qd8 {[%emt 00:00:02]
[%clk 00:00:04]} 34. Qxf5 {[%emt 00:00:04] [%clk 00:00:05]} Nf6 {[%emt 00:00:02]
[%clk 00:00:04]} 35. Rc8 {[%emt 00:00:03] [%clk 00:00:04]} Qe7 {[%emt 00:00:01]
[%clk 00:00:05]} 36. Rxe8+ {[%emt 00:00:02] [%clk 00:00:04]} Qxe8 {[%emt
00:00:01] [%clk 00:00:05]} 37. Qe5 {[%emt 00:00:03] [%clk 00:00:04]} Qd8 {[%emt
00:00:03] [%clk 00:00:04]} 38. Bg4 {[%emt 00:00:01] [%clk 00:00:05]} h6 {[%emt
00:00:02] [%clk 00:00:04]} 39. d5 {[%clk 00:00:06]} Qb6 {[%emt 00:00:02] [%clk
00:00:03]} 40. d6 {[%emt 00:00:01] [%clk 00:00:07]} h5 {[%emt 00:00:02] [%clk
00:00:03]} 41. Bxh5 {[%emt 00:00:03] [%clk 00:00:06]} Qc6 {[%emt 00:00:01] [%clk
00:00:04]} 42. Bg4 {[%emt 00:00:02] [%clk 00:00:06]} Qb6 {[%emt 00:00:03] [%clk
00:00:03]} 43. d7 {[%emt 00:00:01] [%clk 00:00:07]} Kh7 {[%emt 00:00:02] [%clk
00:00:04]} 44. Qf5+ {[%emt 00:00:09] [%clk 00:00:03]} Kh6 {[%emt 00:00:02] [%clk
00:00:04]} 45. Qf4+ {[%emt 00:00:03] [%clk 00:00:03]} Kh7 {[%clk 00:00:04]} 46.
Rd1 {[%emt 00:00:01] [%clk 00:00:05]} Qd8 {[%emt 00:00:02] [%clk 00:00:04]} 47.
Qf5+ {[%emt 00:00:01] [%clk 00:00:06]} Kh8 {[%emt 00:00:02] [%clk 00:00:04]} 48.
Qe6 {[%clk 00:00:06]} Kh7 {[%emt 00:00:02] [%clk 00:00:05]} 49. Bf5+ {[%emt
00:00:02] [%clk 00:00:07]} Kh6 {[%clk 00:00:06]} 50. Qe3+ {[%emt 00:00:01] [%clk
00:00:07]} Kh5 {[%emt 00:00:02] [%clk 00:00:07]} 51. Bg4+ {[%emt 00:00:02] [%clk
00:00:07]} Kh4 {[%clk 00:00:07]} 52. Qf4 {[%emt 00:00:02] [%clk 00:00:07]} 1-0

[Site "Europe Echecs"]